[Event "DVM U10 2024"]
[Site "Duesseldorf"]
[Date "2024.12.27"]
[Round "3"]
[White "Jozsa, Lev"]
[Black "Bienbeck, Matthis"]
[Result "1-0"]
[ECO "B38"]
[WhiteElo "1617"]
[BlackElo "1490"]
[Annotator "NA RC"]
[PlyCount "103"]
[EventDate "2024.12.23"]
[EventType "team-tourn"]
[EventRounds "7"]
[EventCountry "GER"]
[SourceTitle "playchess.com"]
[Source "ChessBase"]
[SourceQuality "1"]
[TimeControl "3300+5"]

1. e4 {[%emt 0:00:00]} c5 {[%emt 0:00:08]} 2. Nf3 {[%emt 0:00:07]} Nc6 {[%emt 0:00:19]} 3. d4 {[%emt 0:00:16]} cxd4 {[%emt 0:00:00]} 4. Nxd4 {[%emt 0:00:05]} g6 {[%emt 0:00:02]} 5. c4 {[%emt 0:00:48]} Bg7 {[%emt 0:00:06]} 6. Be3 {[%emt 0:00:26]} d6 {[%emt 0:00:59]} 7. Nc3 {[%emt 0:00:58]} Nf6 {[%emt 0:00:11]} 8. f3 {[%emt 0:02:22]} Bd7 {[%emt 0:00:49]} 9. Qd2 {[%emt 0:03:16]} O-O {[%emt 0:00:52]} 10. Be2 {[%emt 0:03:20]} b6 {[%emt 0:01:25]} 11. a3 {[%emt 0:02:46]} Rc8 {[%emt 0:00:17]} 12. O-O-O {[%emt 0:04:51]} Na5 {[%emt 0:00:41]} 13. Kb1 {[%emt 0:06:26]} Nxc4 {[%emt 0:08:40]} 14. Bxc4 {[%emt 0:00:30]} Rxc4 {[%emt 0:00:14]} 15. h4 {[%emt 0:00:37]} h5 {[%emt 0:00:37]} 16. Qc1 {[%emt 0:04:12]} Kh7 {[%emt 0:00:40]} 17. Nde2 {[%emt 0:03:51]} Rc8 {[%emt 0:03:08]} 18. Rdg1 {[%emt 0:02:27]} Kg8 {[%emt 0:02:28]} 19. Bh6 {[%emt 0:02:37]} a6 {[%emt 0:06:25]} 20. Bxg7 {[%emt 0:01:06]} Kxg7 {[%emt 0:00:16]} 21. Qg5 {[%emt 0:00:13]} Rh8 {[%emt 0:04:13]} 22. g4 {[%emt 0:03:14]} e5 {[%emt 0:02:15]} 23. Ng3 {[%emt 0:02:21]} hxg4 {[%emt 0:03:42]} 24. h5 {[%emt 0:02:07]} Nxh5 {[%emt 0:00:23]} 25. Nxh5+ {[%emt 0:00:16]} Rxh5 {[%emt 0:01:33]} 26. Rxh5 {[%emt 0:00:16]} Qxg5 {[%emt 0:03:55]} 27. Rxg5 {[%emt 0:00:20]} f6 {[%emt 0:00:10]} 28. R5xg4 {[%emt 0:00:20]} Bxg4 {[%emt 0:00:24]} 29. Rxg4 {[%emt 0:00:18]} Kf7 {[%emt 0:00:24]} 30. Rh4 {[%emt 0:00:30]} Kg7 {[%emt 0:00:44]} 31. Kc2 {[%emt 0:00:42]} g5 {[%emt 0:00:19]} 32. Rh1 {[%emt 0:00:14]} Kg6 {[%emt 0:00:11]} 33. Rd1 {[%emt 0:00:20]} Rc6 {[%emt 0:00:17]} 34. Kb3 {[%emt 0:00:31]} f5 {[%emt 0:00:47]} 35. Nd5 {[%emt 0:00:29]} Kf7 {[%emt 0:02:11]} 36. exf5 {[%emt 0:00:25]} Rc5 {[%emt 0:01:45]} 37. Ka2 {[%emt 0:00:29]} b5 {[%emt 0:00:29]} 38. Nc3 {[%emt 0:00:44]} Rc6 {[%emt 0:00:24]} 39. Ne4 {[%emt 0:00:07]} Ke7 {[%emt 0:00:36]} 40. Nxg5 {[%emt 0:00:15]} Kf6 {[%emt 0:00:06]} 41. Ne4+ {[%emt 0:00:16]} Kxf5 {[%emt 0:00:14]} 42. Rxd6 {[%emt 0:00:18]} Rxd6 {[%emt 0:00:25]} 43. Nxd6+ {[%emt 0:00:01]} Kf4 {[%emt 0:00:04]} 44. Kb3 {[%emt 0:00:05]} Kxf3 {[%emt 0:00:03]} 45. Kb4 {[%emt 0:00:11]} e4 {[%emt 0:00:05]} 46. Nxe4 {[%emt 0:00:05]} Kxe4 {[%emt 0:00:00]} 47. Ka5 {[%emt 0:00:00]} Kd4 {[%emt 0:00:00]} 48. Kxa6 {[%emt 0:00:14]} Kc5 {[%emt 0:00:25]} 49. b4+ {[%emt 0:00:33]} Kc6 {[%emt 0:00:02]} 50. Ka5 {[%emt 0:00:03]} Kc7 {[%emt 0:00:01]} 51. Kxb5 {[%emt 0:00:01]} Kb7 {[%emt 0:00:01]} 52. a4 {[%emt 0:00:02]} 1-0

[Event "DVM U10 2024"]
[Site "Duesseldorf"]
[Date "2024.12.27"]
[Round "3"]
[White "Dombert, Johannes"]
[Black "Dres, Friedrich"]
[Result "1-0"]
[ECO "B01"]
[WhiteElo "1611"]
[BlackElo "1123"]
[Annotator "NA RC"]
[PlyCount "71"]
[EventDate "2024.12.23"]
[EventType "team-tourn"]
[EventRounds "7"]
[EventCountry "GER"]
[SourceTitle "playchess.com"]
[Source "ChessBase"]
[SourceQuality "1"]
[TimeControl "3300+5"]

1. e4 {[%emt 0:00:01]} d5 {[%emt 0:00:01]} 2. exd5 {[%emt 0:00:05]} Qxd5 {[%emt 0:00:12]} 3. Nc3 {[%emt 0:00:17]} Qa5 {[%emt 0:00:07]} 4. d4 {[%emt 0:00:05]} c6 {[%emt 0:00:06]} 5. Nf3 {[%emt 0:00:26]} Nf6 {[%emt 0:00:08]} 6. Bc4 {[%emt 0:01:38]} e6 {[%emt 0:00:08]} 7. Bd2 {[%emt 0:00:15]} Qc7 {[%emt 0:00:05]} 8. O-O {[%emt 0:00:37]} Bd6 {[%emt 0:00:09]} 9. h3 {[%emt 0:02:52]} O-O {[%emt 0:00:15]} 10. Re1 {[%emt 0:00:50]} b5 {[%emt 0:00:13]} 11. Bd3 {[%emt 0:00:17]} Bb7 {[%emt 0:00:08]} 12. Ne4 {[%emt 0:00:27]} Nxe4 {[%emt 0:00:17]} 13. Bxe4 {[%emt 0:00:03]} Nd7 {[%emt 0:00:11]} 14. c3 {[%emt 0:02:05]} Nf6 {[%emt 0:00:05]} 15. Bd3 {[%emt 0:00:16]} Rad8 {[%emt 0:00:15]} 16. Qc2 {[%emt 0:00:49]} h6 {[%emt 0:00:14]} 17. b4 {[%emt 0:01:30]} Rd7 {[%emt 0:01:13]} 18. a4 {[%emt 0:01:34]} a6 {[%emt 0:00:48]} 19. Be3 {[%emt 0:04:15]} Rfd8 {[%emt 0:01:33]} 20. a5 {[%emt 0:00:18]} e5 {[%emt 0:00:07]} 21. dxe5 {[%emt 0:00:17]} Bxe5 {[%emt 0:00:15]} 22. Nxe5 {[%emt 0:00:23]} Qxe5 {[%emt 0:00:08]} 23. Bb6 {[%emt 0:00:13]} Qg5 {[%emt 0:00:40]} 24. Bxd8 {[%emt 0:00:35]} Rxd8 {[%emt 0:00:21]} 25. Rad1 {[%emt 0:00:58]} c5 {[%emt 0:00:10]} 26. f4 {[%emt 0:01:07]} Qh4 {[%emt 0:00:21]} 27. Qf2 {[%emt 0:00:34]} Qxf2+ {[%emt 0:01:00]} 28. Kxf2 {[%emt 0:00:09]} Rc8 {[%emt 0:00:22]} 29. Bf5 {[%emt 0:00:21]} Rf8 {[%emt 0:00:28]} 30. Re7 {[%emt 0:00:45]} Bc6 {[%emt 0:00:17]} 31. Rd6 {[%emt 0:00:47]} Ba8 {[%emt 0:00:08]} 32. bxc5 {[%emt 0:02:02]} g6 {[%emt 0:00:13]} 33. Rxf6 {[%emt 0:02:02]} gxf5 {[%emt 0:00:11]} 34. c6 {[%emt 0:00:30]} Kg7 {[%emt 0:00:22]} 35. Rd6 {[%emt 0:00:27]} Rc8 {[%emt 0:00:00]} 36. c7 {[%emt 0:00:16]} 1-0

[Event "DVM U10 2024"]
[Site "Duesseldorf"]
[Date "2024.12.27"]
[Round "3"]
[White "Wang, Hanyu"]
[Black "Liu, Mio Runhan"]
[Result "0-1"]
[ECO "C50"]
[WhiteElo "1606"]
[BlackElo "1198"]
[Annotator "NA RC"]
[PlyCount "140"]
[EventDate "2024.12.23"]
[EventType "team-tourn"]
[EventRounds "7"]
[EventCountry "GER"]
[SourceTitle "playchess.com"]
[Source "ChessBase"]
[SourceQuality "1"]
[TimeControl "3300+5"]

1. e4 {[%emt 0:00:05]} e5 {[%emt 0:00:07]} 2. Nf3 {[%emt 0:00:07]} Nc6 {[%emt 0:00:10]} 3. Bc4 {[%emt 0:00:07]} Bc5 {[%emt 0:00:16]} 4. d3 {[%emt 0:00:22]} Nf6 {[%emt 0:00:21]} 5. Nc3 {[%emt 0:00:11]} d6 {[%emt 0:00:40]} 6. h3 {[%emt 0:00:08]} h6 {[%emt 0:01:19]} 7. O-O {[%emt 0:00:08]} O-O {[%emt 0:00:08]} 8. Be3 {[%emt 0:00:05]} Nd4 {[%emt 0:00:14]} 9. Bxd4 {[%emt 0:00:14]} exd4 {[%emt 0:00:36]} 10. Na4 {[%emt 0:00:18]} Be6 {[%emt 0:02:28]} 11. Nxc5 {[%emt 0:00:24]} dxc5 {[%emt 0:00:26]} 12. Bb3 {[%emt 0:00:07]} a5 {[%emt 0:01:48]} 13. Bxe6 {[%emt 0:00:20]} fxe6 {[%emt 0:00:13]} 14. e5 {[%emt 0:00:00]} Nd5 {[%emt 0:00:14]} 15. Qd2 {[%emt 0:00:52]} Nf4 {[%emt 0:03:08]} 16. Rad1 {[%emt 0:00:35]} Nxh3+ {[%emt 0:01:27]} 17. Kh2 {[%emt 0:00:48]} Nf4 {[%emt 0:00:42]} 18. g3 {[%emt 0:00:33]} Nd5 {[%emt 0:00:33]} 19. Nh4 {[%emt 0:00:14]} Nf4 {[%emt 0:02:07]} 20. c3 {[%emt 0:00:45]} Qg5 {[%emt 0:03:28]} 21. Nf3 {[%emt 0:00:41]} Qh5+ {[%emt 0:00:42]} 22. Nh4 {[%emt 0:00:07]} Ng6 {[%emt 0:01:05]} 23. Rh1 {[%emt 0:00:53]} Nxh4 {[%emt 0:04:25]} 24. gxh4 {[%emt 0:00:22]} Qxh4+ {[%emt 0:00:31]} 25. Kg2 {[%emt 0:00:42]} Qg4+ {[%emt 0:00:22]} 26. Kh2 {[%emt 0:01:00]} Qh5+ {[%emt 0:01:25]} 27. Kg2 {[%emt 0:01:10]} Qxe5 {[%emt 0:00:41]} 28. cxd4 {[%emt 0:00:19]} cxd4 {[%emt 0:00:28]} 29. Kf1 {[%emt 0:00:14]} Qd5 {[%emt 0:01:19]} 30. Rg1 {[%emt 0:00:12]} Qf3 {[%emt 0:01:11]} 31. Rg2 {[%emt 0:00:30]} Rf6 {[%emt 0:02:24]} 32. Re1 {[%emt 0:01:15]} Raf8 {[%emt 0:00:21]} 33. Re2 {[%emt 0:00:19]} b6 {[%emt 0:02:20]} 34. Qe1 {[%emt 0:00:39]} Qxd3 {[%emt 0:00:29]} 35. Kg1 {[%emt 0:00:16]} Qf5 {[%emt 0:01:31]} 36. b3 {[%emt 0:00:35]} Rg6 {[%emt 0:00:33]} 37. Rxg6 {[%emt 0:00:53]} Qxg6+ {[%emt 0:00:09]} 38. Kf1 {[%emt 0:00:02]} Qd3 {[%emt 0:00:50]} 39. Kg1 {[%emt 0:00:13]} Qg6+ {[%emt 0:00:30]} 40. Kf1 {[%emt 0:00:11]} Re8 {[%emt 0:00:15]} 41. Rd2 {[%emt 0:01:54]} c5 {[%emt 0:00:38]} 42. Qe5 {[%emt 0:01:10]} Qb1+ {[%emt 0:00:47]} 43. Kg2 {[%emt 0:00:26]} Qf5 {[%emt 0:00:24]} 44. Qc7 {[%emt 0:00:30]} Qd5+ {[%emt 0:00:22]} 45. Kf1 {[%emt 0:00:25]} Qh1+ {[%emt 0:01:09]} 46. Ke2 {[%emt 0:00:07]} Qe4+ {[%emt 0:00:37]} 47. Kf1 {[%emt 0:00:11]} Qh1+ {[%emt 0:02:17]} 48. Ke2 {[%emt 0:00:04]} Qh5+ {[%emt 0:00:10]} 49. Kf1 {[%emt 0:00:09]} b5 {[%emt 0:00:36]} 50. Qxa5 {[%emt 0:00:16]} b4 {[%emt 0:00:23]} 51. Qb6 {[%emt 0:00:20]} Qg5 {[%emt 0:00:30]} 52. Rd1 {[%emt 0:03:15]} Qg4 {[%emt 0:00:36]} 53. Rd3 {[%emt 0:03:21]} Qe4 {[%emt 0:00:12]} 54. Rg3 {[%emt 0:00:19]} Qb1+ {[%emt 0:00:09]} 55. Kg2 {[%emt 0:00:08]} Qxa2 {[%emt 0:00:37]} 56. Qc7 {[%emt 0:00:29]} Qa8+ {[%emt 0:00:06]} 57. f3 {[%emt 0:00:12]} Qa2+ {[%emt 0:00:14]} 58. Kh3 {[%emt 0:00:11]} g5 {[%emt 0:00:18]} 59. f4 {[%emt 0:00:10]} Qc2 {[%emt 0:00:21]} 60. fxg5 {[%emt 0:00:36]} Qf5+ {[%emt 0:00:12]} 61. Kh4 {[%emt 0:02:17]} Qe4+ {[%emt 0:00:23]} 62. Rg4 {[%emt 0:00:41]} Qh1+ {[%emt 0:00:45]} 63. Kg3 {[%emt 0:00:21]} h5 {[%emt 0:00:40]} 64. g6 {[%emt 0:00:36]} Qg1+ {[%emt 0:00:25]} 65. Kf3 {[%emt 0:01:04]} Qxg4+ {[%emt 0:00:17]} 66. Kf2 {[%emt 0:00:15]} Rf8+ {[%emt 0:00:09]} 67. Ke1 {[%emt 0:00:13]} Qg1+ {[%emt 0:00:32]} 68. Kd2 {[%emt 0:00:13]} Qe3+ {[%emt 0:00:15]} 69. Kc2 {[%emt 0:00:27]} Rf2+ {[%emt 0:00:07]} 70. Kd1 {[%emt 0:00:11]} Qd2# {[%emt 0:00:09]} 0-1

[Event "DVM U10 2024"]
[Site "Duesseldorf"]
[Date "2024.12.27"]
[Round "3"]
[White "Kinateder, Vitus"]
[Black "Artarov, Rina"]
[Result "1/2-1/2"]
[ECO "B01"]
[WhiteElo "1605"]
[BlackElo "1122"]
[Annotator "NA RC"]
[PlyCount "110"]
[EventDate "2024.12.23"]
[EventType "team-tourn"]
[EventRounds "7"]
[EventCountry "GER"]
[SourceTitle "playchess.com"]
[Source "ChessBase"]
[SourceQuality "1"]
[TimeControl "3300+5"]

1. e4 {[%emt 0:00:01]} d5 {[%emt 0:00:04]} 2. e5 {[%emt 0:00:06]} Bf5 {[%emt 0:00:06]} 3. d4 {[%emt 0:00:09]} e6 {[%emt 0:00:09]} 4. Nf3 {[%emt 0:00:15]} c5 {[%emt 0:00:07]} 5. c3 {[%emt 0:00:12]} Qb6 {[%emt 0:00:08]} 6. Bd3 {[%emt 0:02:18]} Bg6 {[%emt 0:00:15]} 7. Bc2 {[%emt 0:00:37]} Nc6 {[%emt 0:00:11]} 8. O-O {[%emt 0:01:24]} Nge7 {[%emt 0:00:41]} 9. Na3 {[%emt 0:01:59]} Nf5 {[%emt 0:00:17]} 10. Rb1 {[%emt 0:01:28]} Be7 {[%emt 0:00:12]} 11. Re1 {[%emt 0:00:32]} O-O {[%emt 0:00:22]} 12. Be3 {[%emt 0:03:12]} Qa5 {[%emt 0:05:41]} 13. Qd2 {[%emt 0:05:48]} b5 {[%emt 0:01:18]} 14. dxc5 {[%emt 0:02:34]} b4 {[%emt 0:02:44]} 15. cxb4 {[%emt 0:00:47]} Nxb4 {[%emt 0:00:16]} 16. Qc3 {[%emt 0:01:07]} Rac8 {[%emt 0:01:59]} 17. c6 {[%emt 0:01:52]} Nxc6 {[%emt 0:01:47]} 18. Qxa5 {[%emt 0:00:37]} Nxa5 {[%emt 0:00:10]} 19. Bxa7 {[%emt 0:00:08]} Bxa3 {[%emt 0:00:12]} 20. Bxf5 {[%emt 0:00:37]} Bxf5 {[%emt 0:00:14]} 21. bxa3 {[%emt 0:05:42]} Bxb1 {[%emt 0:00:18]} 22. Rxb1 {[%emt 0:00:10]} Nc4 {[%emt 0:00:41]} 23. a4 {[%emt 0:00:09]} Ra8 {[%emt 0:00:18]} 24. Bc5 {[%emt 0:00:13]} Rfc8 {[%emt 0:00:13]} 25. Bd6 {[%emt 0:00:53]} Rxa4 {[%emt 0:00:58]} 26. Ra1 {[%emt 0:02:40]} Nb2 {[%emt 0:02:11]} 27. a3 {[%emt 0:01:17]} Nc4 {[%emt 0:00:45]} 28. Nd4 {[%emt 0:00:34]} Nxa3 {[%emt 0:00:29]} 29. Ne2 {[%emt 0:01:04]} Re4 {[%emt 0:02:00]} 30. Ng3 {[%emt 0:00:28]} Nc2 {[%emt 0:01:48]} 31. Rc1 {[%emt 0:01:45]} Re1+ {[%emt 0:00:27]} 32. Rxe1 {[%emt 0:00:11]} Nxe1 {[%emt 0:00:05]} 33. Kf1 {[%emt 0:00:11]} Nd3 {[%emt 0:00:53]} 34. Ke2 {[%emt 0:00:07]} Nc1+ {[%emt 0:00:41]} 35. Kd1 {[%emt 0:00:20]} Nb3 {[%emt 0:00:31]} 36. Ne2 {[%emt 0:00:21]} d4 {[%emt 0:00:32]} 37. Nf4 {[%emt 0:00:35]} Rc1+ {[%emt 0:01:47]} 38. Ke2 {[%emt 0:00:14]} Rc2+ {[%emt 0:00:21]} 39. Ke1 {[%emt 0:00:20]} g5 {[%emt 0:01:20]} 40. Nd3 {[%emt 0:00:28]} Rd2 {[%emt 0:00:26]} 41. Nc5 {[%emt 0:00:17]} Rb2 {[%emt 0:00:39]} 42. Nd3 {[%emt 0:00:11]} Rb1+ {[%emt 0:00:45]} 43. Ke2 {[%emt 0:00:12]} Nc1+ {[%emt 0:00:32]} 44. Nxc1 {[%emt 0:00:11]} Rxc1 {[%emt 0:00:09]} 45. Kd2 {[%emt 0:00:05]} Rg1 {[%emt 0:00:36]} 46. g3 {[%emt 0:00:10]} Rg2 {[%emt 0:00:04]} 47. Kd3 {[%emt 0:00:08]} Rxf2 {[%emt 0:00:51]} 48. Kxd4 {[%emt 0:00:18]} Rxh2 {[%emt 0:00:31]} 49. Ke3 {[%emt 0:00:11]} g4 {[%emt 0:00:42]} 50. Kf4 {[%emt 0:00:08]} h5 {[%emt 0:00:21]} 51. Bc5 {[%emt 0:00:12]} Kg7 {[%emt 0:00:05]} 52. Be7 {[%emt 0:00:05]} Rf2+ {[%emt 0:00:05]} 53. Kg5 {[%emt 0:00:05]} Rf5+ {[%emt 0:00:05]} 54. Kh4 {[%emt 0:00:05]} Rxe5 {[%emt 0:00:05]} 55. Bf6+ {[%emt 0:00:05]} Kxf6 {[%emt 0:00:05]} 1/2-1/2

[Event "DVM U10 2024"]
[Site "Duesseldorf"]
[Date "2024.12.27"]
[Round "3"]
[White "Elli, Emeric"]
[Black "Sriram, Yashasri"]
[Result "1-0"]
[ECO "C01"]
[WhiteElo "1574"]
[BlackElo "1520"]
[Annotator "NA RC"]
[PlyCount "123"]
[EventDate "2024.12.23"]
[EventType "team-tourn"]
[EventRounds "7"]
[EventCountry "GER"]
[SourceTitle "playchess.com"]
[Source "ChessBase"]
[SourceQuality "1"]
[TimeControl "3300+5"]

1. e4 {[%emt 0:00:02]} e6 {[%emt 0:01:28]} 2. d4 {[%emt 0:00:42]} d5 {[%emt 0:00:31]} 3. exd5 {[%emt 0:00:17]} exd5 {[%emt 0:00:09]} 4. Nf3 {[%emt 0:00:17]} Bd6 {[%emt 0:00:16]} 5. Be3 {[%emt 0:00:28]} Nf6 {[%emt 0:00:11]} 6. Nc3 {[%emt 0:00:18]} O-O {[%emt 0:00:40]} 7. Bg5 {[%emt 0:00:11]} Re8+ {[%emt 0:00:12]} 8. Be2 {[%emt 0:00:16]} c6 {[%emt 0:00:08]} 9. h3 {[%emt 0:00:37]} Bf5 {[%emt 0:00:41]} 10. O-O {[%emt 0:00:42]} Nbd7 {[%emt 0:00:21]} 11. Bd3 {[%emt 0:02:25]} Bxd3 {[%emt 0:02:09]} 12. Qxd3 {[%emt 0:00:37]} h6 {[%emt 0:00:36]} 13. Bxf6 {[%emt 0:01:34]} Nxf6 {[%emt 0:01:13]} 14. Rae1 {[%emt 0:00:37]} Qc7 {[%emt 0:00:28]} 15. a3 {[%emt 0:00:32]} a5 {[%emt 0:01:40]} 16. Qd2 {[%emt 0:01:48]} b5 {[%emt 0:00:54]} 17. Qd3 {[%emt 0:02:28]} b4 {[%emt 0:00:37]} 18. axb4 {[%emt 0:01:10]} axb4 {[%emt 0:01:34]} 19. Nd1 {[%emt 0:01:43]} Rab8 {[%emt 0:03:24]} 20. Ne3 {[%emt 0:01:28]} Re6 {[%emt 0:01:36]} 21. c3 {[%emt 0:01:39]} Ne4 {[%emt 0:05:42]} 22. c4 {[%emt 0:02:12]} dxc4 {[%emt 0:04:26]} 23. Nxc4 {[%emt 0:00:55]} Rbe8 {[%emt 0:01:04]} 24. Nce5 {[%emt 0:02:34]} Nf6 {[%emt 0:04:19]} 25. Rc1 {[%emt 0:00:57]} Bxe5 {[%emt 0:01:28]} 26. Nxe5 {[%emt 0:01:34]} Rd8 {[%emt 0:01:10]} 27. Qc4 {[%emt 0:06:26]} c5 {[%emt 0:04:20]} 28. Nd3 {[%emt 0:00:58]} Rxd4 {[%emt 0:00:36]} 29. Qxd4 {[%emt 0:00:45]} cxd4 {[%emt 0:00:11]} 30. Rxc7 {[%emt 0:00:21]} Kf8 {[%emt 0:00:22]} 31. Rc4 {[%emt 0:00:34]} Rd6 {[%emt 0:00:33]} 32. Rxb4 {[%emt 0:00:13]} Ne4 {[%emt 0:00:12]} 33. Re1 {[%emt 0:00:33]} Re6 {[%emt 0:00:41]} 34. Rxd4 {[%emt 0:00:24]} Nf6 {[%emt 0:00:25]} 35. Rxe6 {[%emt 0:00:19]} fxe6 {[%emt 0:00:09]} 36. Rf4 {[%emt 0:00:34]} Ke7 {[%emt 0:00:28]} 37. g4 {[%emt 0:00:04]} g5 {[%emt 0:00:07]} 38. Rd4 {[%emt 0:00:20]} Nd5 {[%emt 0:00:33]} 39. f4 {[%emt 0:00:24]} gxf4 {[%emt 0:00:14]} 40. Nxf4 {[%emt 0:00:06]} Nxf4 {[%emt 0:00:08]} 41. Rxf4 {[%emt 0:00:10]} e5 {[%emt 0:00:06]} 42. Re4 {[%emt 0:00:20]} Kd6 {[%emt 0:00:06]} 43. Kf2 {[%emt 0:00:22]} Kd5 {[%emt 0:00:17]} 44. Ke3 {[%emt 0:00:19]} Kd6 {[%emt 0:00:13]} 45. h4 {[%emt 0:00:07]} Ke6 {[%emt 0:00:06]} 46. b4 {[%emt 0:00:08]} Kd5 {[%emt 0:00:29]} 47. b5 {[%emt 0:00:26]} Kd6 {[%emt 0:00:07]} 48. b6 {[%emt 0:00:07]} Kc6 {[%emt 0:00:05]} 49. Rxe5 {[%emt 0:00:06]} Kxb6 {[%emt 0:00:08]} 50. Kd4 {[%emt 0:00:17]} h5 {[%emt 0:00:05]} 51. Rxh5 {[%emt 0:00:07]} Kc6 {[%emt 0:00:06]} 52. Rg5 {[%emt 0:00:12]} Kd7 {[%emt 0:00:18]} 53. Rg6 {[%emt 0:00:12]} Ke7 {[%emt 0:00:09]} 54. Kd5 {[%emt 0:00:15]} Kf7 {[%emt 0:00:09]} 55. h5 {[%emt 0:00:11]} Ke7 {[%emt 0:00:16]} 56. g5 {[%emt 0:00:30]} Kf7 {[%emt 0:00:10]} 57. Ke5 {[%emt 0:00:12]} Kf8 {[%emt 0:00:28]} 58. Kf6 {[%emt 0:00:14]} Ke8 {[%emt 0:00:09]} 59. Rg7 {[%emt 0:00:11]} Kf8 {[%emt 0:00:10]} 60. h6 {[%emt 0:00:09]} Ke8 {[%emt 0:00:14]} 61. h7 {[%emt 0:00:05]} Kd8 {[%emt 0:00:18]} 62. h8=Q# {[%emt 0:00:11]} 1-0

[Event "DVM U10 2024"]
[Site "Duesseldorf"]
[Date "2024.12.27"]
[Round "3"]
[White "Wessels, Keke"]
[Black "Leppin, Mattis"]
[Result "1-0"]
[ECO "D00"]
[WhiteElo "1568"]
[BlackElo "1138"]
[Annotator "NA RC"]
[PlyCount "67"]
[EventDate "2024.12.23"]
[EventType "team-tourn"]
[EventRounds "7"]
[EventCountry "GER"]
[SourceTitle "playchess.com"]
[Source "ChessBase"]
[SourceQuality "1"]
[TimeControl "3300+5"]

1. d4 {[%emt 0:00:05]} d5 {[%emt 0:00:03]} 2. Nc3 {[%emt 0:00:07]} Nf6 {[%emt 0:00:07]} 3. Bf4 {[%emt 0:00:13]} c6 {[%emt 0:00:47]} 4. e3 {[%emt 0:00:16]} Bf5 {[%emt 0:00:09]} 5. f3 {[%emt 0:00:27]} e6 {[%emt 0:00:11]} 6. g4 {[%emt 0:00:21]} Bg6 {[%emt 0:00:10]} 7. h4 {[%emt 0:00:22]} h5 {[%emt 0:00:12]} 8. g5 {[%emt 0:00:15]} Nfd7 {[%emt 0:00:29]} 9. Bd3 {[%emt 0:00:29]} Bxd3 {[%emt 0:00:16]} 10. Qxd3 {[%emt 0:00:38]} Nb6 {[%emt 0:02:00]} 11. g6 {[%emt 0:00:46]} f6 {[%emt 0:01:11]} 12. Nge2 {[%emt 0:01:44]} Bd6 {[%emt 0:00:43]} 13. Bxd6 {[%emt 0:00:46]} Qxd6 {[%emt 0:00:11]} 14. O-O-O {[%emt 0:00:37]} N8d7 {[%emt 0:00:23]} 15. e4 {[%emt 0:00:39]} O-O-O {[%emt 0:00:23]} 16. Kb1 {[%emt 0:00:38]} Kb8 {[%emt 0:00:13]} 17. f4 {[%emt 0:02:43]} Rhf8 {[%emt 0:05:17]} 18. e5 {[%emt 0:01:30]} fxe5 {[%emt 0:00:15]} 19. fxe5 {[%emt 0:00:07]} Nxe5 {[%emt 0:02:23]} 20. dxe5 {[%emt 0:00:26]} Qxe5 {[%emt 0:00:06]} 21. Qg3 {[%emt 0:00:34]} Qxg3 {[%emt 0:00:20]} 22. Nxg3 {[%emt 0:01:49]} Rf6 {[%emt 0:00:47]} 23. Nxh5 {[%emt 0:00:53]} Rxg6 {[%emt 0:00:10]} 24. Rdg1 {[%emt 0:00:35]} Rxg1+ {[%emt 0:01:32]} 25. Rxg1 {[%emt 0:00:08]} Rf8 {[%emt 0:00:11]} 26. a3 {[%emt 0:00:34]} e5 {[%emt 0:00:10]} 27. Nxg7 {[%emt 0:00:18]} e4 {[%emt 0:00:59]} 28. Ne6 {[%emt 0:00:43]} Rh8 {[%emt 0:00:15]} 29. Rh1 {[%emt 0:00:28]} Nd7 {[%emt 0:00:26]} 30. h5 {[%emt 0:00:34]} Nf6 {[%emt 0:00:06]} 31. h6 {[%emt 0:00:21]} Kc8 {[%emt 0:00:38]} 32. Ne2 {[%emt 0:01:06]} Kd7 {[%emt 0:00:14]} 33. N2f4 {[%emt 0:00:36]} Ke7 {[%emt 0:01:56]} 34. Ng6+ {[%emt 0:00:13]} 1-0